Cogmind - Beta 14 @@@ ROGUE MODE // 2024.08.28 @ 14:31:59 Player: J1ang-5h1 Result: Destroyed by P-60 Hacker with Shock Rifle Performance ------------- Evolutions (0) 0 Regions Visited (3) 600 Robots Destroyed (38) 190 Value Destroyed (1018) 1018 Prototype IDs (13) 260 Alien Tech Used (0) 0 Bonus (0) 0 TOTAL SCORE: 2068 Bonus ------- None Cogmind --------- Core Integrity 0/250 Matter 275/300 Energy 170/170 System Corruption 3% Temperature Cool (12) Movement Treading (260) Ox1 Location -8/Recycling Parts ------- > --- POWER (1) -------- Makeshift Power Source > --- PROPULSION (2) --- Spiked Treads > --- UTILITY (2) ------ Large Storage Unit Gun Armor > --- WEAPON (2) ------- Battle Rifle Subdweller Machine Gun > --- INVENTORY (15) --- Light Treads Subdweller Monowheel Subdweller Monowheel High-capacity Matter Pod (200) Subdweller Optics Subdweller Optics Improved Sensor Array Makeshift Thermal Plating Battle Cannon Grenade Launcher Grenade Launcher Grenade Launcher Makeshift Sword Peak State ------------ > --- POWER ------------ Makeshift Power Source > --- PROPULSION ------- Light Treads Spiked Treads > --- UTILITY ---------- Large Storage Unit Gun Armor > --- WEAPON ----------- Battle Rifle Makeshift Sword > --- INVENTORY -------- Light Treads Subdweller Monowheel Subdweller Monowheel High-capacity Matter Pod Subdweller Optics Subdweller Optics Improved Sensor Array Makeshift Thermal Plating Riot Gun Riot Gun Subdweller Machine Gun Battle Cannon Grenade Launcher Grenade Launcher Grenade Launcher [Rating: 26] Favorites ----------- Power Light Ion Engine Engine Light Ion Engine Propulsion Spiked Treads Treads Spiked Treads Leg Aluminum Leg Utility Large Storage Unit Device Sensor Array Storage Large Storage Unit Protection Gun Armor Weapon EM Pulse Gun Energy Gun EM Pulse Gun Ballistic Gun Assault Rifle Ballistic Cannon Battle Cannon Launcher Grenade Launcher Special Weapon Mining Laser Slashing Weapon Makeshift Sword Build | -11 -10 -10 -8 ------- Run | Yrd Mat Sub Rec Slots Evolved . | . . . . Power . | . . . . Propulsion . | . . . . Utility . | . . . . Weapon . | . . . . Parts Attached 43 | 1 6 30 6 Power 4 | . . 4 . Engine 4 | . . 4 . Core . | . . . . Reactor . | . . . . Propulsion 5 | . . 5 . Treads 5 | . . 5 . Leg . | . . . . Wheel . | . . . . Hover . | . . . . Flight . | . . . . Utility 3 | . 2 1 . Device 1 | . 1 . . Storage 1 | . 1 . . Processor . | . . . . Hackware . | . . . . Protection 1 | . . 1 . Artifact . | . . . . Weapon 31 | 1 4 20 6 Energy Gun 7 | . . 4 3 Energy Cannon . | . . . . Ballistic Gun 14 | 1 2 9 2 Ballistic Cannon 1 | . . . 1 Launcher 2 | . 2 . . Special Weapon 4 | . . 4 . Impact Weapon . | . . . . Slashing Weapon 3 | . . 3 . Piercing Weapon . | . . . . Special Melee Weapon . | . . . . Unidentified Prototypes . | . . . . Parts Lost 10 | . . 7 3 Power 1 | . . 1 . Propulsion 2 | . . 1 1 Utility . | . . . . Weapon 7 | . . 5 2 Highest Loss Streak 3 | . . 1 3 To Critical Strikes . | . . . . Average Slot Usage (%) 96 | . 98 95 97 Engine 12 | . 14 11 14 Treads 17 | . . 22 26 Leg 7 | . 28 . . Device 3 | . 12 . . Storage 13 | . 14 12 14 Protection 9 | . . 12 14 Energy Gun 12 | . . 16 15 Ballistic Gun 16 | . 27 12 2 Slashing Weapon 1 | . . 2 1 Peak Build Rating 26 | 6 8 25 26 Average Rating 17 | 6 7 20 24 On Entrance 11 | 6 6 8 25 Naked Turns . | . . . . Heaviest Build 37 | 12 29 37 34 Greatest Support 40 | 20 20 40 40 Greatest Overweight (x) 1 | . 1 1 1 Average Overweight (x) . | . . . . Largest Inventory Capacity 15 | 8 15 15 15 Average Capacity 14 | 8 12 15 15 Most Carried 15 | 6 15 15 15 Average Carried 14 | 6 11 14 14 Final Capacity 15 | 8 15 15 15 Final Carried 15 | 6 15 15 13 Class Distribution -------------------- 55% | Mutant 31% | Gunner 12% | Derelict-Mutant Dominant Class ---------------- Mutant | -10/Materials Gunner | -10/Subcaves Derelict-Mutant | -8/Recycling Resources | -11 -10 -10 -8 ----------- Run | Yrd Mat Sub Rec Matter Collected 1248 | 246 275 652 75 Remotely . | . . . . Salvage Created 1452 | 79 375 787 211 Parts 88 | 5 33 45 5 Haulers Intercepted 2 | . 2 . . Recyclers Shooed 2 | . 1 . 1 Parts Field Recycled . | . . . . Retrieved Matter . | . . . . Parts Self-Destructed 23 | . . 23 . Prevented . | . . . . Kills | -11 -10 -10 -8 ------- Run | Yrd Mat Sub Rec Combat Hostiles Destroyed 27 | . 8 16 3 Guns 16 | . 2 13 1 Cannons 1 | . . . 1 AOE 7 | . 6 . 1 Classes Destroyed 12 | 2 6 2 2 Worker 1 | . 1 . . Builder 1 | . 1 . . Tunneler 2 | 1 1 . . Hauler 2 | . 2 . . Recycler 2 | 1 1 . . Watcher 3 | . 3 . . Swarmer 6 | . 6 . . Grunt 4 | . 2 2 . Sentry 2 | . . 1 1 Hunter 1 | . . . 1 Programmer 1 | . . . 1 Subdweller 13 | . . 13 . Best Kill Streak 5 | 2 5 2 2 Combat Bots Only 3 | . 3 2 2 Max Kills in Single Turn 2 | 1 2 1 1 Gunslinging . | . . . . Exploded 2 | . 2 . 1 Melee . | . . . . Uniques/NPCs Destroyed . | . . . . Combat | -11 -10 -10 -8 -------- Run | Yrd Mat Sub Rec Hostile Shots Fired 163 | . 29 90 44 Missed 47 | . 8 27 12 Damage Taken 2047 | . 175 1391 481 Core 259 | . 24 178 57 Absorbed by Shields . | . . . . Core Remaining (%) 100 | 100 . . . Volleys Fired 140 | 6 35 85 14 Largest 4 | 2 2 4 2 Hottest 160 | 40 40 160 100 Shots Fired 272 | 12 63 174 23 Gun 234 | 12 56 148 18 Cannon 5 | . . . 5 Launcher 7 | . 7 . . Special 26 | . . 26 . Kinetic 140 | 12 56 65 7 Thermal 26 | . . 26 . Explosive 7 | . 7 . . Electromagnetic 99 | . . 83 16 Robot Hit Streak 18 | 3 10 18 11 Robot Miss Streak 4 | 2 3 2 4 Penetration Max . | . . . . Secondary Targets . | . . . . Shots Hit Robots 180 | 8 37 117 18 Core Hits 68 | 2 25 31 10 Critical Kills . | . . . . Critical Parts Destroyed . | . . . . Critical Strikes 6 | . . 6 . Destroy 3 | . . 3 . Corrupt 3 | . . 3 . Melee Attacks 26 | . . 26 . Impact . | . . . . Slashing 26 | . . 26 . Piercing . | . . . . Sneak Attacks 1 | . . 1 . Combat Hostiles . | . . . . Follow-up Attacks . | . . . . Damage Inflicted 3390 | 111 913 1696 670 Guns 2354 | 111 462 1584 197 Cannons 141 | . . . 141 Explosions 782 | . 450 . 332 Melee 112 | . . 112 . Ramming 1 | . 1 . . Kinetic 1555 | 111 462 829 153 Thermal 332 | . . . 332 Explosive 450 | . 450 . . Electromagnetic 940 | . . 755 185 Impact . | . . . . Slashing 112 | . . 112 . Piercing . | . . . . Highest Corruption 3 | . . . 3 Average Corruption 1 | . . . 1 Corruption Purged . | . . . . Corruption Blocked . | . . . . Effects 2 | . . . 2 Matter Fused 1 | . . . 1 Data Loss (minor) 1 | . . . 1 Overload Shots . | . . . . Overflow Damage 72 | . . 42 30 Projectiles 30 | . . . 30 Explosions . | . . . . Melee 42 | . . 42 . Knockbacks 2 | . . . 2 Impact . | . . . . Kinetic 2 | . . . 2 Secondary . | . . . . Self-Inflicted Damage . | . . . . Shots . | . . . . Rammed . | . . . . Targets Rammed 1 | . 1 . . Kicked 1 | . 1 . . Crushed . | . . . . Highest Temperature 315 | . . 145 315 Average Temperature 103 | . . 58 135 Received Heat Transfer 246 | . 18 156 72 Siege Activations . | . . . . Robots Corrupted 3 | . . 3 . Combat Hostiles 3 | . . 3 . Parts Fried 10 | . . 10 . Impact Corruptions . | . . . . Robots Melted . | . . . . Combat Hostiles . | . . . . Parts Melted . | . . . . Heat Transferred 420 | . . . 420 Parts Sabotaged . | . . . . Parts Stolen . | . . . . Parts Stripped . | . . . . Power Chain Reactions 2 | . . . 2 Alert | -11 -10 -10 -8 ------- Run | Yrd Mat Sub Rec Peak Influence 221 | 10 221 . 67 Initial 7 | . 6 . 7 Average 74 | 6 83 . 34 Maximum Alert Level 1 | . 1 . . Low Security (%) 84 | 100 81 . 100 Level 1 15 | . 18 . . Level 2 . | . . . . Level 3 . | . . . . Level 4 . | . . . . Level 5 . | . . . . High Security . | . . . . Max Security . | . . . . Squads Dispatched 2 | . 2 . . Investigation 1 | . 1 . . Extermination . | . . . . Reinforcement 1 | . 1 . . Assault . | . . . . Garrison . | . . . . Intercept . | . . . . Searches Triggered . | . . . . Construction Impeded . | . . . . Haulers Reinforced . | . . . . Active Scanning Responses . | . . . . Cargo Convoy Interrupts . | . . . . Stealth | -11 -10 -10 -8 --------- Run | Yrd Mat Sub Rec Distress Signals . | . . . . Communications Jammed . | . . . . Distress Signals . | . . . . Times Spotted 42 | . 15 20 7 Peak Tracking Total 6 | . 3 6 5 Tactical Retreats 2 | . 1 1 . Traps | -11 -10 -10 -8 ------- Run | Yrd Mat Sub Rec Traps Triggered 3 | . 1 2 . Indirectly . | . . . . Trap Hack Attempts . | . . . . Triggered . | . . . . Disarmed . | . . . . Reprogrammed . | . . . . Reused . | . . . . Traps Extracted . | . . . . Installed . | . . . . Triggered . | . . . . Machines | -11 -10 -10 -8 ---------- Run | Yrd Mat Sub Rec Machines Disabled 3 | . 2 1 . Max in Single Turn 2 | . 2 1 . Machines Repaired . | . . . . Machines Dismantled . | . . . . Machines Sabotaged . | . . . . Overloaded Fab Kills . | . . . . Hacking | -11 -10 -10 -8 --------- Run | Yrd Mat Sub Rec Machines Accessed 11 | . 6 3 2 Terminals 5 | . 5 . . Fabricators . | . . . . Repair Stations . | . . . . Recycling Units 3 | . 1 . 2 Scanalyzers . | . . . . Garrison Access . | . . . . Total Hacks 39 | . 24 12 3 Successful 26 | . 12 12 2 Failed 12 | . 11 . 1 Catastrophic 2 | . 2 . . Database Lockouts 1 | . 1 . . Manual 8 | . 8 . . Terminals 19 | . 19 . . Fabricators . | . . . . Repair Stations . | . . . . Recycling Units 8 | . 5 . 3 Scanalyzers . | . . . . Garrison Access . | . . . . Terminal Hacks 18 | . 6 12 . Record 9 | . . 9 . Robot Analysis 1 | . 1 . . Prototype ID Bank 1 | . 1 . . Open Door 1 | . . 1 . Locate Traps 1 | . 1 . . Hauler Manifests 1 | . 1 . . Zone Layout 2 | . 2 . . Derelict Proto ID Bank 1 | . . 1 . Release Object 1 | . . 1 . Fabricator Hacks . | . . . . Repair Station Hacks . | . . . . Recycling Unit Hacks 3 | . 1 . 2 Report Inventory 3 | . 1 . 2 Scanalyzer . | . . . . Garrison Access Hacks . | . . . . Unauthorized Hacks 5 | . 5 . . Terminals 1 | . 1 . . Botnet 1 | . 1 . . Fabricators . | . . . . Repair Stations . | . . . . Recycling Units 4 | . 4 . . Monitor 1 | . 1 . . Reject 1 | . 1 . . Recyclers 1 | . 1 . . Mask 1 | . 1 . . Scanalyzers . | . . . . Garrison Access . | . . . . Data Cores Recovered . | . . . . Used . | . . . . Hacking Detections 5 | . 4 . 1 Full Trace Events . | . . . . Feedback Events . | . . . . Feedback Blocked . | . . . . Robot Schematics Acquired . | . . . . Robots Built . | . . . . Authchips . | . . . . Time . | . . . . Total Robot Build Rating . | . . . . Part Schematics Acquired . | . . . . Parts Built . | . . . . Authchips . | . . . . Time . | . . . . Total Part Build Rating . | . . . . Parts Repaired . | . . . . Time . | . . . . Parts Recycled . | . . . . Recycled Matter . | . . . . Retrieved Matter . | . . . . Retrieved Components . | . . . . Parts Scanalyzed . | . . . . Part Schematics Acquired . | . . . . Parts Damaged . | . . . . Bothacking | -11 -10 -10 -8 ------------ Run | Yrd Mat Sub Rec Used RIF Installer . | . . . . Robots Hacked . | . . . . Non-combat . | . . . . Combat . | . . . . Robot Hacks Applied . | . . . . Relay Couplers Released . | . . . . Fabnet Peak Effective % . | . . . . Robots Rewired 1 | . . . 1 Allies Hacked . | . . . . Hacks Repelled . | . . . . Allies | -11 -10 -10 -8 -------- Run | Yrd Mat Sub Rec Total Allies 1 | . . . 1 Largest Group 1 | . . . 1 Highest-Rated Group 10 | . . . 10 Highest-Rated Ally 10 | . . . 10 Total Orders . | . . . . Ally Attacks . | . . . . Total Damage . | . . . . Kills . | . . . . Allies Corrupted . | . . . . Allies Melted . | . . . . Intel | -11 -10 -10 -8 ------- Run | Yrd Mat Sub Rec Robot Analysis Total 1 | . 1 . . Derelict Logs Recovered 2 | . . 2 . Drone Launches . | . . . . Drone Recoveries . | . . . . Exploration | -11 -10 -10 -8 ------------- Run | Yrd Mat Sub Rec Turns Passed 5081 | 46 1196 3639 200 Spaces Moved 2512 | 23 604 1798 87 Core . | . . . . Treads 1830 | . . 1743 87 Legs 682 | 23 604 55 . Wheels . | . . . . Hover . | . . . . Flight . | . . . . Fastest Speed 120 | 120 120 160 160 Average Speed 172 | 120 162 177 163 Slowest Speed 260 | 120 190 260 260 Overloaded Moves . | . . . . Propulsion Burnouts . | . . . . Robots Hopped . | . . . . Cave-ins Triggered . | . . . . Exploration Rate (%) 42 | 3 66 82 18 Regions Visited 3 Branch Regions 2 Pre-discovered Areas . | . . . . Known Exits Taken 1 | . . 1 . Unknown Exits Taken 2 | 1 1 . . Scrap Searched 12 | . . 12 . Spaces Dug 5 | . . 5 . Terrain Destroyed 53 | . 43 5 5 Melee 5 | . . 5 . Projectile . | . . . . AOE 48 | . 43 . 5 Terrain Rammed . | . . . . Walls Destroyed . | . . . . Machines Disabled . | . . . . Actions | -11 -10 -10 -8 --------- Run | Yrd Mat Sub Rec Total 2933 | 29 754 2028 122 Wait 148 | . 93 47 8 Move 2509 | 22 603 1797 87 Hop . | . . . . Pick Up 34 | . 12 21 1 Fast Attach 5 | . 1 4 . Attach 9 | . . 7 2 Detach . | . . . . Swap 29 | 1 5 19 4 Drop 26 | . 4 21 1 Fire 140 | 6 35 85 14 Melee 26 | . . 26 . Ram . | . . . . Kick 1 | . 1 . . Crush . | . . . . Escape Stasis . | . . . . Rewire 5 | . . . 5 Trap . | . . . . Miscellaneous 1 | . . 1 . Route ------- -11/Scrapyard -10/Materials (discovered 4 exits: [*Mat x2] / [*Min] / *Sub) -10/Subcaves (discovered 3 exits: *Mat x2 / *Rec) -8/Recycling History --------- Turn | Location | Event 21 | -11/Scrapyard | Discovered new exit (range 3) 47 | -11/Scrapyard | Entered Materials 142 | -10/Materials | Discovered new exit (range 8) 213 | -10/Materials | Central database locked down 268 | -10/Materials | Discovered new exit (range 8) 309 | -10/Materials | Build established: Mutant 832 | -10/Materials | Discovered new exit (range 10) 1233 | -10/Materials | Discovered new exit (range 6) 1243 | -10/Materials | Entered Subcaves 1397 | -10/Subcaves | Visited 4L-MR0's lab 1424 | -10/Subcaves | Found Gun Armor 1426 | -10/Subcaves | Attached Gun Armor, gained temporary slots: Weapon x2 1586 | -10/Subcaves | Identified exit to Materials 1628 | -10/Subcaves | Shifting Twisted Machinery released Piercing Trap 1636 | -10/Subcaves | Shifting Twisted Machinery released Sub. Power Source 1724 | -10/Subcaves | Build established: Gunner 2186 | -10/Subcaves | Released subatomizers from SUBCON Basin 3280 | -10/Subcaves | Shifting Twisted Machinery released Riot Gun 3291 | -10/Subcaves | Shifting Twisted Machinery released Sub. Monowheel 3361 | -10/Subcaves | Build established: Mutant 3449 | -10/Subcaves | Disturbed a concealed Subdweller 3900 | -10/Subcaves | A swath of the cavern ceiling suddenly collapsed 3949 | -10/Subcaves | Core integrity fell below 50% 4039 | -10/Subcaves | Identified exit to Recycling 4173 | -10/Subcaves | Core integrity fell below 20% 4399 | -10/Subcaves | Shifting Twisted Machinery released Sub. Machine Gun 4404 | -10/Subcaves | Shifting Twisted Machinery released Battle Rifle 4424 | -10/Subcaves | A swath of the cavern ceiling suddenly collapsed 4562 | -10/Subcaves | Discovered exit to Materials (range 10) 4715 | -10/Subcaves | Build established: Derelict-Mutant 4882 | -10/Subcaves | Entered Recycling 5082 | -8/Recycling | Destroyed by P-60 Hacker with Shock Rifle Last Messages --------------- 05064_ I-25 Savior springs to life. 05064_ Y-45 Defender springs to life. 05065_ Acquired 10 matter. 05065_ P-60 Hacker springs to life. 05065_ Chain reaction triggered in Lgt. Nuclear Core. 05065_ Chain reaction triggered in Ion Engine. 05065_ H-55 Commando destroyed. 05065_ R-06 Scavenger destroyed. 05066_ System corrupted: Matter fused (-10). 05066_ Acquired 10 matter. 05069_ L-31 Rogue destroyed. 05070_ Riot Gun destroyed. 05072_ P-60 Hacker resets P-60 Hacker, system corruption cleaned. 05074_ R-06 Scavenger collects Corrupted Carbon-fiber Leg. 05075_ Riot Gun destroyed. 05079_ Door malfunctions. 05081_ System corrupted: Component data lost. Map ----- +----------------------------------------------------+ | ???????????????????????? ???????????????## # | | ???????????????????????? ???????????????# # % | | ???????????????????????? ??????????????### # | | ???????????????????????? ??????????????#"" # | | ???????????????????????? ??????????????#"Y # | | ???????????????????????? ??????????????#"" + | | ???????????????????????? ??????????????### # | | ???????????????????????? #???????????????# ## # | | ????????????????????????# #??????#####????# #?## | | ????????????????????????# #??????#"""#???## ##?? | | ????????????????????????# #????###"Y"##### #?? | | ????????????????????????# #????# #?? | | ????????????????????????# #????# #?? | | ???????????????????###### #????# #?? | | ???????????????????# /! # ###### ###### #?? | | ???????????????????# # #????#######?? | | ???????????????????+ !# #????????????? | | ???????????????????#%%!!# " #????????????? | | ???????????????????#= # "" #????????????? | | ??????????????????## # "" #????????????? | | ??????????????????#; l # """ #????????????? | | ??????????????????# # "" #????????????? | | ??????????????????# a%%r# """ #????????????? | | ??????????????????# rY#t """ #????????????? | | ??????????????????#" = p """ ??????????? | | ??????????????????## !%%#@ " ??????????? | | ???????????????????# /# ??????????? | | ???????????????????###### ????????? | | ????????????????????????# ##### ?????????? | | ????????????????????????#+#????##/######?????????? | | ????????????????????????????????? ?????????????? | | ?????????????????????????????????? ???????????? | | ??????????????????????????????????? ???????????? | | ?????????????????????????????????????????????????? | | ?????????????????????????????????????????????????? | | ?????????????????????????????????????????????????? | | ?????????????????????????????????????????????????? | | ?????????????????????????????????????????????????? | | ?????????????????????????????????????????????????? | | ?????????????????????????????????????????????????? | | ?????????????????????????????????????????????????? | | ?????????????????????????????????????????????????? | | ?????????????????????????????????????????????????? | | ?????????????????????????????????????????????????? | | ?????????????????????????????????????????????????? | | ?????????????????????????????????????????????????? | | ?????????????????????????????????????????????????? | | ?????????????????????????????????????????????????? | | ?????????????????????????????????????????????????? | | ?????????????????????????????????????????????????? | +----------------------------------------------------+ Best States ------------- Heat Dissipation 25 Energy Generation 15 Energy Capacity 200 Matter Stores 300 Matter Capacity 300 Sight Range 16 Robot Scan Range 14 Terrain Scan Density 10 Armor Coverage 60 Evasion (%) 55 Recoil Reduction 2 Item Schematics ----------------- None Robot Schematics ------------------ None Fabricated ------------ Nothing Alien Tech Used ----------------- None Achievements -------------- None Challenges ------------ None Game ------ Seed ThermalCannonScythe Manual? 0 Play Time 00:40:10 Cumulative 243.5 hours Start 2024.08.28 @ 13:50:30 End 2024.08.28 @ 14:31:59 Sessions 1 Manual Loads 0 Difficulty Rogue Special Mode None Game No. 181 Rogue 171 Adventurer 0 Explorer 10 Win Type - Total 3 Types 3/0/0/0/0/0/0/0/0 Lore% 60 Gallery% 68 Achievement% 53 Wizard Run 0 Options --------- Layout 1 ASCII 0 Keyboard 0 Movement Arrows Keybinds 1 Fullscreen 1 Font 24/Smallcaps Map View 50x35 Zoom Use 0% Tactical HUD 1 Map Filters NONE Filters NONE Steam 1 RUN: 9d863bb3-cd8d-4df5-ac5f-acdc6f33736e